Cogmind - Beta 16 @@@ ROGUE MODE // 2025.11.15 @ 20:31:52 Player: Infomantis Result: Assimilated 0b10! Performance ------------- Evolutions (9) 4500 Regions Visited (25) 5000 Robots Destroyed (292) 1460 Value Destroyed (15999) 15999 Prototype IDs (65) 1300 Alien Tech Used (2) 400 Bonus (21642) 21642 TOTAL SCORE: 50301 Bonus ------- High Alert Combat Kills 370 Follower Combat Kills 3040 Entered Garrisons 800 Used RIF Installer 2500 Entered DSFs 500 Network Hubs Disabled 400 Aligned with FarCom 300 Built Enhanced Grunts 300 Met R17 at Cetus 500 Found Hidden Lab 3000 Met R17 at Research 2000 Destroyed MAIN.C Guards 500 Met MAIN.C 5000 Used 0b10 Conduit 2000 Win 3000 Friendly Fire -2568 Cogmind --------- Core Integrity 1527/1600 Matter 253/300 Energy 227/635 System Corruption 29% Temperature Cool (8) Movement Walking (77) Location 0b10 Command Parts ------- > --- POWER (4) -------- Compact Particle Reactor Quantum Reactor Improved Quantum Reactor > --- PROPULSION (6) --- Enhanced Biometal Leg Centrium Leg Heavy Shield Leg Potential Leg Potential Leg > --- UTILITY (13) ----- Advanced Heat Sink Advanced Cooling System Advanced Coolant Injector High-capacity Storage Unit Advanced Targeting Computer Core Analyzer Quantum Capacitor Experimental Utility Shielding Heavy Regenerative Plating AEGIS Remote Shield > --- WEAPON (3) ------- Enhanced Nova Cannon Enhanced Nova Cannon Warp Cannon > --- INVENTORY (20) --- Enhanced Biometal Leg Heavy Shield Leg Experimental Power Amplifier Advanced Heat Sink Improved Cooling System Improved Transmission Jammer Centrium Medium Armor Plating Medium Regenerative Plating Experimental Focal Shield Relay Coupler [Sentry] (16) Enhanced Quantum Rifle HERF Cannon Enhanced Nova Cannon Hardcell Cannon Gamma Bomb Array Guided Remote Datajack Peak State ------------ > --- POWER ------------ Compact Particle Reactor Compact Particle Reactor Quantum Reactor Improved Quantum Reactor > --- PROPULSION ------- Enhanced Biometal Leg Enhanced Biometal Leg Heavy Shield Leg Potential Leg Potential Leg > --- UTILITY ---------- Advanced Heat Sink Advanced Heat Sink Advanced Cooling System Advanced Coolant Injector High-capacity Storage Unit Advanced Targeting Computer Core Analyzer Experimental Utility Shielding Centrium Medium Armor Plating Medium Regenerative Plating AEGIS Remote Shield Relay Coupler [Proto] Relay Coupler [Proto] > --- WEAPON ----------- Enhanced Nova Cannon Warp Cannon Guided Remote Datajack > --- INVENTORY -------- Centrium Leg Heavy Shield Leg Heavy Shield Leg Experimental Power Amplifier Advanced Heat Sink Improved Cooling System Improved Transmission Jammer Experimental Focal Shield Relay Coupler [Sentry] Enhanced Quantum Rifle HERF Cannon Enhanced Nova Cannon Enhanced Nova Cannon Hardcell Cannon Gamma Bomb Array [Rating: 216] Favorites ----------- Power Compact Particle Reactor Engine Heavy Deuterium Engine Power Core Light Nuclear Core Reactor Compact Particle Reactor Propulsion Aluminum Leg Leg Aluminum Leg Utility Relay Coupler [Grunt] Device Advanced Cooling System Storage High-capacity Storage Unit Processor Core Analyzer Hackware Relay Coupler [Grunt] Protection Medium Regenerative Plating Weapon Advanced KE Penetrator Energy Gun Enhanced Quantum Rifle Energy Cannon Enhanced Nova Cannon Ballistic Gun Advanced KE Penetrator Ballistic Cannon Flak Cannon Launcher Gamma Bomb Array Special Weapon Improved Remote Datajack Slashing Weapon Katana Piercing Weapon Spear Build | -11 -10 -10 -10 -9 -8 -8 -8 -8 -7 -7 -6 -6 -6 -6 -6 -5 -5 -4 -4 -4 -3 -2 -2 -1 -1 ------- Run | Yrd Mat Min Exi Min Mat Gar Mat Gar Fac Gar Fac Ext Cet Arc Hub Fac Gar Fac Arm Lab Res Res DSF Acc Com Slots Evolved 18 | . . . . . 4 . . . 2 . 2 . . . . 2 . 2 . . 2 2 . 2 . Power 3 | . . . . . . . . . . . . . . . . . . 1 . . . 1 . 1 . Propulsion 3 | . . . . . 2 . . . . . . . . . . . . 1 . . . . . . . Utility 11 | . . . . . 1 . . . 2 . 2 . . . . 2 . . . . 2 1 . 1 . Weapon 1 | . . . . . 1 . . . . . . . . . . . . . . . . . . . . Parts Attached 278 | 7 4 3 1 3 15 14 . 32 10 16 12 21 5 5 4 6 22 15 29 8 21 1 1 10 13 Power 36 | 1 1 1 . 1 1 2 . 3 1 1 1 4 . . . . 3 5 4 . 4 1 . 1 1 Engine 14 | 1 1 1 . 1 1 1 . 2 . 1 . 3 . . . . 2 . . . . . . . . Core 6 | . . . . . . 1 . 1 1 . 1 1 . . . . . . 1 . . . . . . Reactor 16 | . . . . . . . . . . . . . . . . . 1 5 3 . 4 1 . 1 1 Propulsion 80 | 2 . . . 1 5 3 . 11 4 5 5 7 . . 2 3 6 4 8 2 7 . . 4 1 Treads . | . . . . . . . . . . . . . . . . . . . . . . . . . . Leg 80 | 2 . . . 1 5 3 . 11 4 5 5 7 . . 2 3 6 4 8 2 7 . . 4 1 Wheel . | . . . . . . . . . . . . . . . . . . . . . . . . . . Hover . | . . . . . . . . . . . . . . . . . . . . . . . . . . Flight . | . . . . . . . . . . . . . . . . . . . . . . . . . . Utility 91 | 2 1 . 1 1 5 5 . 8 3 3 3 6 2 5 . 3 11 2 7 2 8 . . 4 9 Device 41 | 1 1 . . 1 4 2 . 2 1 . 2 2 1 3 . . 5 1 3 2 5 . . 2 3 Storage 5 | 1 . . 1 . . . . . . . . 1 . . . . . . . . . . . 1 1 Processor 9 | . . . . . . . . . 1 . 1 . . . . 1 2 . 1 . 1 . . . 2 Hackware 22 | . . . . . . . . 4 . 3 . 2 . . . 2 4 1 2 . 1 . . 1 2 Protection 14 | . . . . . 1 3 . 2 1 . . 1 1 2 . . . . 1 . 1 . . . 1 Artifact . | . . . . . . . . . . . . . . . . . . . . . . . . . . Weapon 71 | 2 2 2 . . 4 4 . 10 2 7 3 4 3 . 2 . 2 4 10 4 2 . 1 1 2 Energy Gun 21 | . . . . . 4 . . 4 1 3 1 2 1 . . . . 1 3 1 . . . . . Energy Cannon 9 | . . . . . . . . . . . 1 . . . . . . . 3 2 1 . . 1 1 Ballistic Gun 26 | 2 2 2 . . . 2 . 4 . 3 . 1 2 . 1 . 1 2 3 . 1 . . . . Ballistic Cannon 3 | . . . . . . 1 . . . . . 1 . . . . . . . . . . . . 1 Launcher 4 | . . . . . . . . 1 . . . . . . 1 . . . 1 . . . 1 . . Special Weapon 5 | . . . . . . . . 1 1 . 1 . . . . . 1 . . 1 . . . . . Impact Weapon . | . . . . . . . . . . . . . . . . . . . . . . . . . . Slashing Weapon 2 | . . . . . . 1 . . . . . . . . . . . 1 . . . . . . . Piercing Weapon 1 | . . . . . . . . . . 1 . . . . . . . . . . . . . . . Special Melee Weapon . | . . . . . . . . . . . . . . . . . . . . . . . . . . Unidentified Prototypes 27 | . . . . 1 3 . . . 1 . . 1 3 . 1 . . 1 2 5 7 . . . 2 Corrupted Parts 5 | . . . . . . . . . . . . . 1 1 . . 3 . . . . . . . . System Corruption 19 | . . . . . . . . . . . . . 6 1 . . 12 . . . . . . . . Parts Lost 33 | . . . . . . 9 . 5 . . . 3 . . 2 1 6 3 4 . . . . . . Power 4 | . . . . . . . . . . . . 1 . . . . . 1 2 . . . . . . Propulsion 10 | . . . . . . 3 . 2 . . . . . . 2 1 1 . 1 . . . . . . Utility 8 | . . . . . . 2 . 1 . . . . . . . . 4 . 1 . . . . . . Weapon 11 | . . . . . . 4 . 2 . . . 2 . . . . 1 2 . . . . . . . Highest Loss Streak 6 | . . . . . . 6 . 4 . . . 3 . . 2 1 2 3 2 . . . . . . To Critical Strikes . | . . . . . . . . . . . . . . . . . . . . . . . . . . Average Backups 16 | 2 7 8 9 12 14 14 14 14 14 14 14 19 19 19 19 19 19 19 19 19 19 19 18 17 17 Power . | . 1 1 1 2 2 2 1 . . . . . 1 1 1 1 1 1 . . . . 1 . . Propulsion 2 | . . 1 1 3 2 2 3 2 2 2 2 4 5 5 4 3 3 2 3 2 2 2 2 4 4 Utility 6 | . 2 2 2 4 5 6 7 6 6 7 6 7 6 6 7 7 8 9 9 9 9 8 8 7 7 Weapon 4 | 1 3 3 3 3 4 3 3 3 5 4 4 5 6 6 6 6 5 4 4 6 5 5 3 4 5 Tool/Special . | . . . . . . . . . . . . . . . . . . . . . . . . . . Unused Backups 45 | 1 4 1 . . 4 . 2 2 1 2 1 4 1 . . . 1 2 5 1 1 . 3 4 5 Power 7 | . 2 . . . 1 . 1 . . . . 1 . . . . . . . . 1 . 1 . . Propulsion 5 | . . . . . . . . . . . . 2 . . . . 1 . 2 . . . . . . Utility 19 | . 1 . . . 1 . 1 1 . 2 . 1 1 . . . . 1 2 1 . . 2 2 3 Weapon 12 | 1 1 1 . . 2 . . 1 1 . 1 . . . . . . 1 1 . . . . . 2 Tool/Special 2 | . . . . . . . . . . . . . . . . . . . . . . . . 2 . Average Slot Usage (%) 94 | . 100 100 72 99 89 94 100 99 96 91 92 97 100 96 99 89 98 99 91 95 97 99 100 96 90 Engine 5 | . 14 14 14 14 9 4 9 8 2 1 3 2 6 6 6 5 4 4 . . . . . . . Core 1 | . . . . . . 4 . . 4 5 2 3 . . . . . . 1 5 . . . . . Reactor 3 | . . . . . . . . . . . . . . . . . . 5 7 5 8 12 12 15 14 Leg 26 | . 28 28 28 28 33 34 36 35 30 30 26 26 26 26 25 22 22 26 18 26 26 25 25 19 16 Device 9 | . 14 14 14 13 10 7 9 4 6 3 5 8 6 6 6 5 5 8 8 12 15 15 16 15 17 Storage 7 | . 14 14 14 14 9 9 9 9 7 7 6 6 6 6 6 5 5 5 5 5 4 4 4 3 3 Processor 3 | . . . . . . . . . 5 2 6 6 6 6 6 5 12 7 5 5 4 4 4 3 4 Hackware 11 | . . . . . . . . 6 6 8 13 19 20 20 20 19 19 20 20 17 16 16 16 15 9 Protection 5 | . . . . . 1 8 9 6 7 7 6 3 6 3 6 5 5 5 6 5 7 8 8 10 10 Energy Gun 4 | . . . . . 11 11 9 10 . 5 5 13 10 6 4 . . . 2 2 8 8 4 6 2 Energy Cannon 1 | . . . . . . . . . . . . . . . . . . . 2 3 3 4 6 3 6 Ballistic Gun 11 | . 28 28 1 28 14 7 9 12 21 15 13 4 8 13 14 16 16 13 9 . . . . . . Peak Build Rating 216 | 8 8 12 15 23 28 30 27 38 53 60 70 70 84 83 90 93 103 111 139 134 174 190 194 213 216 Average Rating 80 | 6 7 10 8 15 24 25 27 32 41 56 63 65 79 77 84 85 94 104 128 122 159 188 193 210 209 On Entrance 76 | . 7 7 12 15 16 28 27 27 35 53 60 62 70 83 83 90 89 92 110 132 133 174 189 194 213 Avg Prop Armor Cover (%) 3 | . . . . . . . . . . . . . . . . . . . . . 3 . . . . Naked Turns . | . . . . . . . . . . . . . . . . . . . . . . . . . . Heaviest Build 177 | 12 13 20 35 35 43 43 41 43 61 63 67 76 76 76 82 80 86 99 108 105 108 118 139 166 177 Greatest Support 180 | 20 20 20 20 20 45 45 45 50 65 75 75 75 75 75 86 71 90 96 150 121 178 178 178 180 180 Greatest Overweight (x) 1 | . . . 1 1 1 1 . 1 1 . 1 1 1 1 1 1 1 1 1 . . . . . 1 Average Overweight (x) . | . . . . 1 . . . . . . . . . . . 1 . . . . . . . . . Largest Inventory Capacity 20 | 8 8 8 15 15 15 15 15 15 15 15 15 20 20 20 20 20 20 20 20 20 20 20 20 20 20 Average Capacity 16 | 7 8 8 11 15 15 15 15 15 15 15 15 19 20 20 20 20 20 20 20 20 20 20 20 20 20 Most Carried 20 | 8 8 8 14 14 15 15 15 15 15 15 15 20 20 20 20 20 20 20 20 20 20 20 20 20 20 Average Carried 16 | 3 7 8 9 12 14 14 14 14 14 14 14 19 19 19 19 19 19 19 19 19 19 19 19 19 19 Final Capacity 20 | 8 8 8 15 15 15 15 15 15 15 15 15 20 20 20 20 20 20 20 20 20 20 20 20 20 20 Final Carried 20 | 7 8 8 12 14 15 15 15 15 15 15 15 20 20 20 18 20 20 20 20 20 20 20 20 20 17 Class Distribution -------------------- 23% | Bothacker-Skirmisher 16% | Scavenger-Skirmisher 14% | Mutant 12% | Bothacker-Tank 6% | Commander-Skirmisher 5% | Botlord-Skirmisher 4% | Scavenger-Mutant 4% | Bothacker-Gunner 3% | Botlord-Tank Dominant Class ---------------- Mutant | -10/Materials Mutant | -10/Mines Mutant | -10/Exiles Scavenger-Mutant | -9/Mines Scavenger-Skirmisher | -8/Materials Scavenger-Skirmisher | -8/Garrison Scavenger-Skirmisher | -8/Materials Scavenger-Skirmisher | -8/Garrison Scavenger-Gunner | -7/Factory Bothacker-Skirmisher | -7/Garrison Bothacker-Gunner | -6/Factory Bothacker-Skirmisher | -6/Extension Bothacker-Tank | -6/Cetus Commander-Skirmisher | -6/Archives Commander-Skirmisher | -6/Hub_04(d) Bothacker-Skirmisher | -5/Factory Bothacker-Skirmisher | -5/Garrison Botlord-Skirmisher | -4/Factory Bothacker-Skirmisher | -4/Armory Bothacker-Mutant | -4/Lab Bothacker-Tank | -3/Research Bothacker-Tank | -2/Research Bothacker-Tank | -2/DSF Botlord-Tank | -1/Access Bothacker-Tank | -1/Command Resources | -11 -10 -10 -10 -9 -8 -8 -8 -8 -7 -7 -6 -6 -6 -6 -6 -5 -5 -4 -4 -4 -3 -2 -2 -1 -1 ----------- Run | Yrd Mat Min Exi Min Mat Gar Mat Gar Fac Gar Fac Ext Cet Arc Hub Fac Gar Fac Arm Lab Res Res DSF Acc Com Matter Collected 11664 | 362 148 133 33 189 246 443 . 972 233 803 501 803 274 523 284 331 1163 744 1884 159 645 20 90 228 453 Remotely . | . . . . . . . . . . . . . . . . . . . . . . . . . . Salvage Created 15451 | 255 211 . . 144 241 903 . 919 290 394 730 521 114 392 583 559 1313 934 1964 . 855 63 701 1379 1986 Parts 785 | 27 15 . . 7 12 38 . 55 16 21 34 31 13 27 26 26 85 33 97 . 22 1 18 76 105 Haulers Intercepted 7 | . 1 . . . . . . . . . . . . . 2 1 . . . . 3 . . . . Recyclers Shooed 7 | . . . . . . . . . . . 3 . . . . . . . . . 2 . . 1 1 Parts Field Recycled . | . . . . . . . . . . . . . . . . . . . . . . . . . . Retrieved Matter . | . . . . . . . . . . . . . . . . . . . . . . . . . . Parts Self-Destructed . | . . . . . . . . . . . . . . . . . . . . . . . . . . Prevented . | . . . . . . . . . . . . . . . . . . . . . . . . . . Parts Restored . | . . . . . . . . . . . . . . . . . . . . . . . . . . Kills | -11 -10 -10 -10 -9 -8 -8 -8 -8 -7 -7 -6 -6 -6 -6 -6 -5 -5 -4 -4 -4 -3 -2 -2 -1 -1 ------- Run | Yrd Mat Min Exi Min Mat Gar Mat Gar Fac Gar Fac Ext Cet Arc Hub Fac Gar Fac Arm Lab Res Res DSF Acc Com Combat Hostiles Destroyed 230 | . 4 . . 6 4 23 . 28 6 10 9 8 . 1 3 7 21 11 31 . 4 1 6 19 28 Guns 150 | . 4 . . 6 4 10 . 20 6 10 9 8 . 1 3 7 14 11 23 . 3 . 1 7 3 Cannons 61 | . . . . . . 13 . 7 . . . . . . . . . . 6 . 1 1 4 7 22 AOE 13 | . . . . . . . . 1 . . . . . . . . 7 . . . . . 1 3 1 Classes Destroyed 25 | 3 4 . . 1 2 4 . 3 . 2 . 2 . . . . . . 1 . . . 1 . 2 Worker 9 | 1 1 . . 1 . . . . . . 2 . . . 2 . . . . . . . . 1 1 Builder 6 | . . . . . . . . . . . . 2 . . 2 . . . . . 1 . . 1 . Tunneler 9 | 8 . . . . . . . . . . 1 . . . . . . . . . . . . . . Hauler 7 | . 1 . . . . . . . . . . . . . 2 1 . . . . 3 . . . . Recycler 5 | 1 . . . . . . . . . . 2 . . . 1 . . . . . 1 . . . . Mechanic 2 | . . . . . . . . . . . . . . . . . . . 1 . 1 . . . . Operator 12 | . . . . . 1 . . . 1 . . 1 . 9 . . . . . . . . . . . Watcher 11 | . 2 . . . . 1 . . . . 1 1 1 . 1 . . 1 2 . 1 . . . . Swarmer 33 | . 3 . . 3 . 3 . 6 . 3 1 . . . 1 . 4 . 5 . . . . 3 1 Cutter 6 | . . . . . . . . 2 . . . . . . . . 4 . . . . . . . . Saboteur 3 | . . . . . . . . 2 . . . . . . . . . . 1 . . . . . . Grunt 60 | . 1 . . 2 3 7 . 11 4 5 2 6 . . . 3 3 4 7 . 1 . . 1 . Brawler 6 | . . . . . . . . . . 1 1 . . . . 1 1 1 1 . . . . . . Duelist 5 | . . . . . . 1 . . . . . . . . . . . . 3 . . . . 1 . Protector 2 | . . . . . . 1 . . 1 . . . . . . . . . . . . . . . . Sentry 35 | . . . . . 1 9 . 2 . . 1 1 . 1 1 1 3 4 3 . 2 . . 3 3 Demolisher 2 | . . . . . . 1 . . . . . . . . . . . . 1 . . . . . . Specialist 8 | . . . . . . 1 . . . . . . . . . . . . 2 . . . 3 2 . Hunter 13 | . . . . . . . . . . 1 1 . . . 1 . 4 . 2 . 1 . 2 1 . Programmer 38 | . . . . . . . . 3 1 . 3 . . . . 2 1 2 7 . . 1 . 8 10 Heavy 1 | . . . . . . . . . . . . . . . . . . . . . . . 1 . . Behemoth 2 | . . . . . . . . . . . . 1 . . . . 1 . . . . . . . . M Guard 1 | . . . . . . . . . . . . . . . . . . . . . . . . . 1 Combat Programmer 2 | . . . . . . . . . . . . . . . . . . . . . . . . . 2 Assembled 1 | . . . . 1 . . . . . . . . . . . . . . . . . . . . . Thug 4 | . . . . . . . . 1 . . . . . . . . . . . . . . . . 3 Butcher 2 | . . . . . . . . 1 . . . . . . . . . . . . . . . . 1 Guerrilla 2 | . . . . . . . . . . . . . . . . . . . . . . . . . 2 Wizard 3 | . . . . . . . . . . . . . . . . . . . . . . . . . 3 Fireman 1 | . . . . . . . . . . . . . . . . . . . . . . . . . 1 Mutant 1 | . . . . . . . . . . . . . . . . . . . . . . . . . 1 Best Kill Streak 7 | 3 3 . . 3 3 5 . 7 3 4 2 5 1 3 3 2 4 3 3 . 2 1 5 5 4 Combat Bots Only 7 | . 3 . . 3 3 5 . 7 3 4 2 3 . 1 1 2 4 3 3 . 2 1 5 3 4 Max Kills in Single Turn 5 | 1 2 . . 1 1 2 . 2 2 2 2 2 1 1 2 1 4 1 2 . 1 1 1 5 1 Gunslinging 1 | . . . . . . 1 . . 1 1 . . . . . . . . 1 . . . . . . Exploded 4 | . . . . . . . . 1 . . . . . . . . 4 . . . . . 1 3 1 Melee . | . . . . . . . . . . . . . . . . . . . . . . . . . . Uniques/NPCs Destroyed 1 | . . . . . . . . . . . . . 1 . . . . . . . . . . . . A7 (-6/Cetus) Combat | -11 -10 -10 -10 -9 -8 -8 -8 -8 -7 -7 -6 -6 -6 -6 -6 -5 -5 -4 -4 -4 -3 -2 -2 -1 -1 -------- Run | Yrd Mat Min Exi Min Mat Gar Mat Gar Fac Gar Fac Ext Cet Arc Hub Fac Gar Fac Arm Lab Res Res DSF Acc Com Hostile Shots Fired 1461 | . 25 . . 37 9 115 . 115 35 40 67 48 8 1 40 22 134 83 303 . 22 6 54 92 205 Missed 475 | . 7 . . 12 5 37 . 29 14 17 25 21 4 1 8 5 39 15 88 . 9 3 27 36 73 Deflected 29 | . . . . . . . . . . . . . . . . . . . 23 . . . . 6 . Hits 986 | . 18 . . 25 4 78 . 86 21 23 42 27 4 . 32 17 95 68 215 . 13 3 27 56 132 Melee 23 | . . . . . . . . 4 . 1 . . . . . . 5 . 13 . . . . . . Projectile 963 | . 18 . . 25 4 78 . 82 21 22 42 27 4 . 32 17 90 68 202 . 13 3 27 56 132 AOE 12 | . . . . . . 5 . 1 . . . . . . . . 3 . 2 . . . . 1 . Critical Strikes 60 | . . . . . . 2 . 6 . 1 3 2 3 . 7 1 5 4 12 . . 1 . 3 10 Part Disruptions 16 | . . . . . . . . 1 . . 1 . . . . . . . 1 . . . . . 13 Actively Blocked 4 | . . . . . . . . . . . . . . . . . . . . . . . . . 4 Damage Taken 15819 | . 155 . . 227 59 1219 . 1350 230 302 846 426 57 13 905 335 1908 1410 3442 . 222 55 387 660 1611 Core 1026 | . 45 . . 37 . 116 . 198 18 27 40 25 . . 86 18 114 136 62 . . 13 18 12 61 Absorbed by Shields 3041 | . . . . . . . . . . 17 . 9 53 . . . 250 . 106 . 67 51 318 633 1537 Redirected to Shielding 145 | . . . . . . . . . . . . . . . . . . . 9 . . . 26 26 84 Ignored by Resistances 898 | . . . . . . . . . . . . . . . . . . 99 360 . 45 16 130 158 90 Regen/Repaired (Parts) 2823 | . . . . . . . . . . . . . . 70 . . 851 577 606 99 57 7 28 50 478 Core Remaining (%) 84 | 100 . . . 67 . . . 42 . 93 . . . . 82 . 86 . . 82 100 . 97 . 95 Volleys Fired 977 | 23 24 1 . 17 9 56 . 75 14 63 44 45 27 42 18 18 68 56 148 11 30 4 14 49 121 Largest 3 | 2 2 2 . 2 3 3 . 3 3 3 3 3 3 3 3 3 3 3 3 1 3 3 3 3 3 Hottest 305 | 40 40 53 . 56 144 148 . 190 90 140 140 203 190 150 150 98 98 160 195 120 250 250 305 305 305 Shots Fired 2124 | 46 48 2 . 34 27 149 . 180 31 104 116 95 79 81 46 42 182 135 306 11 67 12 30 117 184 Gun 1650 | 46 48 2 . 34 27 120 . 146 28 102 111 72 78 81 43 36 179 119 226 . 38 8 7 65 34 Cannon 405 | . . . . . . 29 . 25 . . 4 8 . . 1 1 . 13 64 11 29 4 19 50 147 Launcher 12 | . . . . . . . . 1 . . . . . . 1 . 2 . 1 . . . 4 2 1 Special 57 | . . . . . . . . 8 3 2 1 15 1 . 1 5 1 3 15 . . . . . 2 Kinetic 1163 | 46 48 2 . 34 14 66 . 90 28 66 75 37 44 78 32 36 179 106 181 . . . . . 1 Thermal 807 | . . . . . 13 60 . 73 . 13 40 41 15 3 12 1 . 26 100 11 66 12 26 115 180 Explosive 4 | . . . . . . . . 1 . . . . . . 1 . 2 . . . . . . . . Electromagnetic 93 | . . . . . . 23 . 8 . 23 . 2 19 . . . . . 10 . 1 . 4 2 1 Robot Hit Streak 18 | 8 5 2 . 4 4 18 . 16 6 9 13 11 5 5 8 8 10 13 16 . 18 5 13 18 16 Robot Miss Streak 8 | 4 3 1 . 4 3 3 . 5 3 3 8 8 5 5 2 2 3 5 4 . 2 1 2 2 4 Penetration Max 2 | . . . . . . . . 2 2 1 1 2 . 1 1 1 1 1 2 . . . . . . Secondary Targets 17 | . . . . 1 . 2 . 3 1 1 . . . . . 1 2 2 4 . . . . . . Max Gunslinging Chain 1 | . . . . 1 . 1 . 1 1 1 . . . . . 1 1 1 1 . . . . . . Capacitor 73 | . . . . . . . . . . . . . . . . . . . . . . . . . 73 Shots Hit Robots 1221 | 30 27 1 . 14 15 99 . 98 19 28 68 67 49 44 27 28 114 81 149 . 36 8 23 76 120 Core Hits 660 | 13 12 . . 9 8 63 . 62 12 18 44 38 28 23 18 15 54 30 72 . 18 2 19 48 54 Critical Kills 26 | . . . . . . 1 . . . 4 1 1 . 1 3 5 5 3 . . . . . . 2 Critical Parts Destroyed 35 | . . . . . . . . 4 . 1 . 4 1 4 2 2 8 6 3 . . . . . . Critical Strikes 69 | . . . . . . 3 . 5 . 5 1 5 2 5 5 7 14 12 3 . . . . . 2 Burn 4 | . . . . . . 2 . 1 . . . . 1 . . . . . . . . . . . . Meltdown 2 | . . . . . . . . . . . . . . . . . . . . . . . . . 2 Destroy 63 | . . . . . . 1 . 4 . 5 1 5 1 5 5 7 14 12 3 . . . . . . Melee Attacks 22 | . . . . . . 7 . 5 . 10 . . . . . . . . . . . . . . . Impact . | . . . . . . . . . . . . . . . . . . . . . . . . . . Slashing 12 | . . . . . . 7 . 5 . . . . . . . . . . . . . . . . . Piercing 10 | . . . . . . . . . . 10 . . . . . . . . . . . . . . . Sneak Attacks . | . . . . . . . . . . . . . . . . . . . . . . . . . . Combat Hostiles . | . . . . . . . . . . . . . . . . . . . . . . . . . . Follow-up Attacks . | . . . . . . . . . . . . . . . . . . . . . . . . . . Damage Inflicted 35515 | 320 338 33 . 344 300 1887 . 2188 498 636 1880 1360 869 1239 897 728 3197 2081 4597 . 1311 346 1121 3290 6055 Guns 23534 | 320 327 28 . 253 279 1190 . 1536 498 636 1765 1139 869 1239 805 728 2694 2081 3502 . 649 189 214 1783 810 Cannons 9965 | . . . . . . 697 . 514 . . . 221 . . . . . . 1065 . 596 157 639 1193 4883 Explosions 1621 | . . . . 62 . . . 138 . . . . . . 78 . 503 . 30 . . . 268 289 253 Melee . | . . . . . . . . . . . . . . . . . . . . . . . . . . Ramming 395 | . 11 5 . 29 21 . . . . . 115 . . . 14 . . . . . 66 . . 25 109 Kinetic 16603 | 320 327 28 . 253 116 1103 . 1377 498 488 962 615 549 1204 559 728 2694 1793 2967 . . . . . 22 Thermal 16514 | . . . . 62 163 592 . 675 . 148 803 745 256 35 246 . . 288 1404 . 1233 346 853 2994 5671 Explosive 652 | . . . . . . . . 71 . . . . . . 78 . 503 . . . . . . . . Electromagnetic 1351 | . . . . . . 192 . 65 . . . . 64 . . . . . 226 . 12 . 268 271 253 Impact . | . . . . . . . . . . . . . . . . . . . . . . . . . . Slashing . | . . . . . . . . . . . . . . . . . . . . . . . . . . Piercing . | . . . . . . . . . . . . . . . . . . . . . . . . . . Highest Corruption 29 | . 3 3 3 3 . . . 1 1 1 6 7 13 13 4 1 13 2 12 12 2 . 4 7 29 Average Corruption 5 | . 2 3 3 3 . . . 1 1 1 4 6 8 8 2 1 4 1 7 12 2 . 3 3 15 Corruption Purged 27 | . . . . . . . . . . . . . . 14 . . 13 . . . . . . . . Corruption Blocked . | . . . . . . . . . . . . . . . . . . . . . . . . . . Effects 341 | . 9 14 12 17 . . . 8 . 5 17 29 19 15 8 . 34 . 54 16 8 . 3 15 58 Message Errors 73 | . 3 2 4 8 . . . 2 . 2 3 5 3 4 . . 2 . 12 4 4 . . 5 10 Matter Fused 80 | . 5 5 3 3 . . . 2 . 1 3 3 5 1 4 . 7 . 16 4 1 . 1 3 13 Heat Flow Errors 45 | . 1 4 1 3 . . . 1 . . 3 . 5 3 . . 9 . 3 . 2 . 1 2 7 Energy Discharges 24 | . . . 1 1 . . . 1 . . . 6 . 2 1 . 2 . 3 3 . . . . 4 Parts Rejected 6 | . . . . . . . . . . 1 . . . . 1 . . . 1 . . . . . 3 Parts Fused 4 | . . 1 . . . . . . . . . 2 . . . . . . . 1 . . . . . Data Loss (minor) 45 | . . 1 . . . . . 1 . . 1 8 4 3 . . 6 . 7 4 . . . 3 7 Data Loss (major) 14 | . . 1 1 . . . . . . . 1 1 . . . . 3 . 5 . . . . 1 1 Misfires 19 | . . . . 1 . . . 1 . 1 3 1 1 1 1 . 2 . 3 . . . 1 1 2 Alerts 8 | . . . 2 . . . . . . . . 1 . . . . 1 . 1 . . . . . 3 Misdirections 1 | . . . . . . . . . . . . . . . . . . . . . . . . . 1 Weapon Failures 22 | . . . . 1 . . . . . . 3 2 1 1 1 . 2 . 3 . 1 . . . 7 Overload Shots . | . . . . . . . . . . . . . . . . . . . . . . . . . . Overflow Damage 564 | . . . . . . 3 . . . . . . . . . . . . . . 55 1 . 55 450 Projectiles 556 | . . . . . . 3 . . . . . . . . . . . . . . 47 1 . 55 450 Explosions . | . . . . . . . . . . . . . . . . . . . . . . . . . . Melee 8 | . . . . . . . . . . . . . . . . . . . . . 8 . . . . Knockbacks 24 | . 1 . . 1 . 13 . 6 . . 1 . . . . . . . . . . . . . 2 Impact 5 | . 1 . . 1 . . . . . . 1 . . . . . . . . . . . . . 2 Kinetic 19 | . . . . . . 13 . 6 . . . . . . . . . . . . . . . . . Secondary . | . . . . . . . . . . . . . . . . . . . . . . . . . . Self-Inflicted Damage 119 | . . . . . . . . 23 . . . . . . . . 58 . 26 . . . 12 . . Shots 5 | . . . . . . . . 1 . . . . . . . . 1 . 2 . . . 1 . . Rammed . | . . . . . . . . . . . . . . . . . . . . . . . . . . Targets Rammed 32 | . 2 1 . 5 3 . . . . . 8 . . . 1 . . . . . 4 . . 1 7 Kicked 32 | . 2 1 . 5 3 . . . . . 8 . . . 1 . . . . . 4 . . 1 7 Crushed . | . . . . . . . . . . . . . . . . . . . . . . . . . . Highest Temperature 426 | . 175 208 116 237 200 265 . 357 113 259 365 81 317 271 27 . 233 48 426 32 108 135 39 358 198 Average Temperature 83 | . 95 85 63 85 80 72 . 92 39 92 122 26 125 107 9 . 62 16 74 14 35 59 26 97 90 Received Heat Transfer 2791 | . 36 . . 48 36 459 . 390 66 85 45 205 . . 84 117 222 251 592 . 37 . . 28 90 Effects 15 | . . . . . . . . . . . 2 . 2 2 . . . . 7 . . . . 2 . Shutdowns 3 | . . . . . . . . . . . 1 . . . . . . . 1 . . . . 1 . Energy Bleed 1 | . . . . . . . . . . . . . . . . . . . 1 . . . . . . Interference 9 | . . . . . . . . . . . . . 2 2 . . . . 4 . . . . 1 . Damage (minor) 2 | . . . . . . . . . . . 1 . . . . . . . 1 . . . . . . Siege Activations . | . . . . . . . . . . . . . . . . . . . . . . . . . . Martial Activations . | . . . . . . . . . . . . . . . . . . . . . . . . . . Shielding Activations 11 | . . . . . . . . . . . . . . . . . . . 8 . . . . 3 . Total Turns 153 | . . . . . . . . . . . . . . . . . . . 118 . . . . 35 . Longest Duration 32 | . . . . . . . . . . . . . . . . . . . 32 . . . . 14 . Robots Disrupted 1 | . . . . . . . . . . . . . . . . . . . . . . . . 1 . Combat Hostiles 1 | . . . . . . . . . . . . . . . . . . . . . . . . 1 . Robots Corrupted 3 | . . . . . . . . . . . . . . . . . . . 2 . 1 . . . . Combat Hostiles 2 | . . . . . . . . . . . . . . . . . . . 2 . . . . . . Parts Fried 13 | . . . . . . . . . . . . . 2 . . . 2 . 2 . 2 . 2 2 1 Impact Corruptions 1 | . . . . . . . . . . . . . . . . . . . . . 1 . . . . Robots Melted 4 | . . . . . . . . . . . . . . . . . . . . . . . . 2 2 Combat Hostiles 4 | . . . . . . . . . . . . . . . . . . . . . . . . 2 2 Parts Melted 56 | . . . . . 1 3 . 2 . 1 2 . 1 . 1 1 1 . 2 . 5 3 2 19 12 Heat Transferred 19860 | . . . . 100 333 1369 . 1469 . 298 1725 1596 597 75 550 . . 333 1369 . 1295 296 814 2948 4693 Parts Sabotaged 2 | . . . . . . . . . . 2 . . . . . . . . . . . . . . . Parts Stolen . | . . . . . . . . . . . . . . . . . . . . . . . . . . Parts Stripped . | . . . . . . . . . . . . . . . . . . . . . . . . . . Power Chain Reactions 2 | . . . . . . . . 1 . . . . . . . . . . . . . . . 1 . Alert | -11 -10 -10 -10 -9 -8 -8 -8 -8 -7 -7 -6 -6 -6 -6 -6 -5 -5 -4 -4 -4 -3 -2 -2 -1 -1 ------- Run | Yrd Mat Min Exi Min Mat Gar Mat Gar Fac Gar Fac Ext Cet Arc Hub Fac Gar Fac Arm Lab Res Res DSF Acc Com Maximum Alert Level 3 | . . . . . . 2 1 3 2 3 2 1 . . 2 . 2 1 1 . . . . . 1 Low Security (%) 63 | 100 100 100 . 100 100 25 . 15 . . . 98 100 100 71 100 48 9 79 . 100 100 100 100 78 Level 1 20 | . . . . . . 61 100 18 8 18 94 1 . . 23 . 21 90 20 . . . . . 21 Level 2 13 | . . . . . . 12 . 35 91 72 5 . . . 5 . 29 . . . . . . . . Level 3 2 | . . . . . . . . 30 . 8 . . . . . . . . . . . . . . . Level 4 . | . . . . . . . . . . . . . . . . . . . . . . . . . . Level 5 . | . . . . . . . . . . . . . . . . . . . . . . . . . . High Security . | . . . . . . . . . . . . . . . . . . . . . . . . . . Max Security . | . . . . . . . . . . . . . . . . . . . . . . . . . . Peak Influence 921 | 15 110 . . 108 70 527 256 921 483 803 421 214 154 116 431 115 666 349 304 . 75 37 143 188 270 Initial 483 | . . . . . . 1 256 140 483 309 421 150 21 27 . 115 1 349 115 . . . 6 85 108 Average 194 | 2 26 . . 20 8 271 240 518 431 587 301 97 95 53 147 21 306 257 119 . 14 13 84 82 151 Influence Increases 9153 | 50 213 . . 198 124 616 . 851 253 574 369 539 273 232 826 143 795 346 1037 . 257 49 147 609 652 Destroy 0b10 Robot/C 4390 | . 80 . . 100 80 440 . 480 135 270 225 270 120 45 210 105 330 165 555 . 75 30 90 315 270 Destroy 0b10 Robot/NC 310 | 50 20 . . 5 5 10 . . 8 . 24 28 8 36 44 4 12 4 8 . 28 . . 12 4 Destroy Leader 750 | . 16 . . 20 20 20 . 32 40 24 66 12 . . 86 18 24 50 114 . 32 8 8 80 80 Allied During Kill 1024 | . . . . . . . . 45 44 49 28 111 119 71 336 2 10 3 100 . 40 6 16 38 6 Trap Triggered on 0b10 16 | . . . . . . . . . . . . . . . . . 8 . 8 . . . . . . Successful Hack 476 | . 22 . . . 19 . . 6 25 . 17 91 . . . . 28 36 66 . 50 2 . 50 64 Select Force Hacks 68 | . 30 . . . . . . . . . . . . . 38 . . . . . . . . . . Disable Machine 432 | . . . . 60 . . . . . 36 . 24 . 60 60 . 36 12 84 . . . 12 . 48 Anti-Garrison Action 629 | . . . . . . 100 . 189 . 151 . . . . . . 189 . . . . . . . . Destroy Structure 674 | . . . . 13 . 31 . 51 1 44 9 3 14 20 52 14 62 52 66 . 32 3 9 54 144 Partial Spotted 12 | . . . . . . . . . . . . . . . . . . 12 . . . . . . . Lose Combat Pursuer 372 | . 45 . . . . 15 . 48 . . . . 12 . . . 96 12 36 . . . 12 60 36 Influence Decreases 8883 | 50 213 . . 198 121 92 311 146 732 213 864 808 244 300 590 377 131 775 970 304 257 40 13 582 552 Entered New Map 2507 | . . . . . . 2 271 76 438 133 382 158 18 41 . 121 1 317 122 304 . . 3 58 62 Time Decay 4811 | 50 213 . . 198 121 . 40 . 254 . 422 467 206 239 270 236 . 368 578 . 235 40 . 404 470 Lost Part 320 | . . . . . . 90 . 50 . . . 30 . . 20 . 60 30 40 . . . . . . Lost Ally 1245 | . . . . . . . . 20 40 80 60 153 20 20 300 20 70 60 230 . 22 . 10 120 20 Squads Dispatched 49 | . 1 . . . 2 . . . 3 . 8 2 . . 8 1 . 2 6 . 6 . 2 4 4 Investigation 10 | . 1 . . . . . . . 1 . . 1 . . 2 . . . 1 . 3 . . 1 . Extermination 18 | . . . . . . . . . 1 . 3 . . . 1 1 . 2 4 . . . . 2 4 Reinforcement 18 | . . . . . 2 . . . . . 5 1 . . 3 . . . 1 . 3 . 2 1 . Assault 1 | . . . . . . . . . 1 . . . . . . . . . . . . . . . . Garrison 2 | . . . . . . . . . . . . . . . 2 . . . . . . . . . . Intercept . | . . . . . . . . . . . . . . . . . . . . . . . . . . Searches Triggered . | . . . . . . . . . . . . . . . . . . . . . . . . . . Construction Impeded 4 | . . . . . . . . . . . 2 1 . . 1 . . . . . . . . . . Haulers Reinforced 2 | . . . . . . . . . . . . . . . 1 . . . . . 1 . . . . Active Scanning Responses . | . . . . . . . . . . . . . . . . . . . . . . . . . . Cargo Convoy Interrupts . | . . . . . . . . . . . . . . . . . . . . . . . . . . Stealth | -11 -10 -10 -10 -9 -8 -8 -8 -8 -7 -7 -6 -6 -6 -6 -6 -5 -5 -4 -4 -4 -3 -2 -2 -1 -1 --------- Run | Yrd Mat Min Exi Min Mat Gar Mat Gar Fac Gar Fac Ext Cet Arc Hub Fac Gar Fac Arm Lab Res Res DSF Acc Com Distress Signals 22 | . 2 . . . 2 . . . . . 4 2 2 . 1 1 . . 2 . 4 . . 2 . Communications Jammed 100 | . . . . . . . . . . . . . . . . . . 6 46 . 1 . . 47 . Distress Signals 69 | . . . . . . . . . . . . . . . . . . 6 46 . . . . 17 . Times Spotted 422 | . 11 2 . 5 7 25 . 36 15 26 20 29 11 24 27 12 24 14 50 . 10 2 7 28 37 Peak Tracking Total 13 | . 4 2 . 3 2 4 . 6 5 8 3 6 5 2 13 3 5 3 7 . 3 2 4 7 5 Tactical Retreats 22 | . 2 . . . . 1 . 3 . . . . 1 . . . 4 1 3 . . . 1 3 3 Traps | -11 -10 -10 -10 -9 -8 -8 -8 -8 -7 -7 -6 -6 -6 -6 -6 -5 -5 -4 -4 -4 -3 -2 -2 -1 -1 ------- Run | Yrd Mat Min Exi Min Mat Gar Mat Gar Fac Gar Fac Ext Cet Arc Hub Fac Gar Fac Arm Lab Res Res DSF Acc Com Traps Triggered 53 | . 2 . . . . 5 . 7 . 7 5 3 . . 2 1 5 . 10 . 1 . 1 . 4 Indirectly 4 | . . . . . . . . . . . . . . . . . . . . . . . 1 . 3 Trap Hack Attempts . | . . . . . . . . . . . . . . . . . . . . . . . . . . Triggered . | . . . . . . . . . . . . . . . . . . . . . . . . . . Disarmed . | . . . . . . . . . . . . . . . . . . . . . . . . . . Reprogrammed . | . . . . . . . . . . . . . . . . . . . . . . . . . . Reused 2 | . . . . . . . . . . . . . . . . . 1 . 1 . . . . . . Traps Extracted . | . . . . . . . . . . . . . . . . . . . . . . . . . . Installed 2 | . . . . . . . . . . . . . . . . . 1 . 1 . . . . . . Triggered 2 | . . . . . . . . . . . . . . . . . 1 . 1 . . . . . . Most Traps Carried 5 | . . . . . . . . . . . . . . . . . 5 4 4 3 3 3 3 3 . Machines | -11 -10 -10 -10 -9 -8 -8 -8 -8 -7 -7 -6 -6 -6 -6 -6 -5 -5 -4 -4 -4 -3 -2 -2 -1 -1 ---------- Run | Yrd Mat Min Exi Min Mat Gar Mat Gar Fac Gar Fac Ext Cet Arc Hub Fac Gar Fac Arm Lab Res Res DSF Acc Com Machines Disabled 54 | . . . . 4 . 1 . 3 . 5 . 2 1 5 5 . 5 6 7 5 . . 1 . 4 Max in Single Turn 3 | . . . . 3 . 1 . 1 . 2 . 1 . 1 2 . 1 1 1 1 . . . . 1 Garrison Access 5 | . . . . . . . . . . . . . . . . . . . . . 2 . . 3 . Garrison Relay 8 | . . . . . . 1 . 3 . 2 . . . . . . 2 . . . . . . . . Network Hub 2 | . . . . . . . . . . . . . . . 2 . . . . . . . . . . Machines Repaired . | . . . . . . . . . . . . . . . . . . . . . . . . . . Machines Dismantled . | . . . . . . . . . . . . . . . . . . . . . . . . . . Machines Sabotaged 1 | . . . . . . . . . . . . . . . 1 . . . . . . . . . . Overloaded Fab Kills . | . . . . . . . . . . . . . . . . . . . . . . . . . . Hacking | -11 -10 -10 -10 -9 -8 -8 -8 -8 -7 -7 -6 -6 -6 -6 -6 -5 -5 -4 -4 -4 -3 -2 -2 -1 -1 --------- Run | Yrd Mat Min Exi Min Mat Gar Mat Gar Fac Gar Fac Ext Cet Arc Hub Fac Gar Fac Arm Lab Res Res DSF Acc Com Machines Accessed 92 | . 6 . 2 . 6 3 3 3 4 1 6 13 . . 4 3 2 4 8 1 6 1 . 11 5 Terminals 66 | . 5 . . . 4 3 2 3 1 1 3 13 . . 3 1 2 3 6 . 4 1 . 7 4 Fabricators 4 | . . . . . . . . . 1 . . . . . . . . 1 1 . . . . 1 . Repair Stations 3 | . . . . . . . . . . . 1 . . . . 1 . . . . . . . . 1 Recycling Units 3 | . 1 . . . . . . . 1 . . . . . . . . . 1 . . . . . . Scanalyzers 4 | . . . . . 1 . . . . . 2 . . . . . . . . . 1 . . . . Garrison Access 9 | . . . . . 1 . 1 . 1 . . . . . 1 1 . . . . 1 . . 3 . Total Hacks 300 | . 20 . 24 . 10 4 6 4 10 2 14 38 . . 5 7 12 21 32 18 34 1 . 24 14 Successful 146 | . 11 . 24 . 7 . 1 2 5 . 3 16 . . 3 2 3 5 7 18 18 1 . 13 7 Failed 154 | . 9 . . . 3 4 5 2 5 2 11 22 . . 2 5 9 16 25 . 16 . . 11 7 Catastrophic 36 | . 1 . . . . 3 2 1 . . 1 3 . . 2 . 3 5 11 . 1 . . 2 1 Database Lockouts . | . . . . . . . . . . . . . . . . . . . . . . . . . . Manual 84 | . 17 . 1 . 3 . 5 . 3 . 1 14 1 . 4 . 9 11 1 . 11 . . 3 . Terminals 202 | . 18 . . . 7 4 5 4 2 2 6 38 . . 4 3 12 16 27 . 25 1 . 17 11 Fabricators 12 | . . . . . . . . . 3 . . . . . . . . 5 3 . . . . 1 . Repair Stations 10 | . . . . . . . . . . . 4 . . . . 3 . . . . . . . . 3 Recycling Units 8 | . 2 . . . . . . . 4 . . . . . . . . . 2 . . . . . . Scanalyzers 14 | . . . . . 2 . . . . . 4 . . . . . . . . . 8 . . . . Garrison Access 12 | . . . . . 1 . 1 . 1 . . . . . 1 1 . . . . 1 . . 6 . Terminal Hacks 95 | . 3 . 24 . 2 . . 2 1 . 2 8 . . . 1 2 4 5 18 11 1 . 6 5 Record 41 | . . . 23 . . . . . . . . . . . . . . . . 18 . . . . . Part Schematic 2 | . . . . . . . . . . . . 1 . . . . . . . . 1 . . . . Robot Analysis 2 | . . . . . . . . . . . . 1 . . . . . . . . . . . . 1 Prototype ID Bank 4 | . . . . . 1 . . . . . . 1 . . . . . . . . 2 . . . . Open Door 10 | . . . . . . . . 1 . . . 5 . . . . . . . . . . . 3 1 Open DSF 1 | . . . . . . . . . . . . . . . . . . . . . . 1 . . . Level Access Points 2 | . . . . . . . . . . . . . . . . . . . . . 1 . . 1 . Branch Access Points 4 | . . . . . 1 . . . . . 1 . . . . . . 1 . . . . . 1 . Emergency Access Points 3 | . . . . . . . . 1 . . . . . . . . 1 . 1 . . . . . . Terminal Index 3 | . . . . . . . . . . . . . . . . . . . 1 . 1 . . . 1 Fabricator Index 1 | . . . . . . . . . . . . . . . . . . . . . 1 . . . . Locate Traps 8 | . 1 . . . . . . . 1 . 1 . . . . . . . 2 . 2 . . . 1 Maintenance Status 2 | . . . . . . . . . . . . . . . . . . 1 . . . . . 1 . Surveillance Status 2 | . . . . . . . . . . . . . . . . . . . 1 . 1 . . . . Patrol Status 1 | . . . . . . . . . . . . . . . . . . 1 . . . . . . . Transport Status 1 | . . . . . . . . . . . . . . . . . . . . . 1 . . . . Hauler Manifests 1 | . . . . . . . . . . . . . . . . . . . . . 1 . . . . Registered Components 3 | . 1 . . . . . . . . . . . . . . 1 . 1 . . . . . . . Zone Layout 1 | . 1 . . . . . . . . . . . . . . . . . . . . . . . . Security Stations 1 | . . . . . . . . . . . . . . . . . 1 . . . . . . . . Proto ID Catalog 1 | . . . 1 . . . . . . . . . . . . . . . . . . . . . . Disengage Seal 1 | . . . . . . . . . . . . . . . . . . . . . . . . . 1 Fabricator Hacks 2 | . . . . . . . . . . . . . . . . . . 1 1 . . . . . . Build 2 | . . . . . . . . . . . . . . . . . . 1 1 . . . . . . Repair Station Hacks 3 | . . . . . . . . . . . 1 . . . . . . . . . . . . . 2 Scan Component 2 | . . . . . . . . . . . 1 . . . . . . . . . . . . . 1 Repair 1 | . . . . . . . . . . . . . . . . . . . . . . . . . 1 Recycling Unit Hacks 1 | . . . . . . . . . 1 . . . . . . . . . . . . . . . . Retrieve Components 1 | . . . . . . . . . 1 . . . . . . . . . . . . . . . . Scanalyzer 7 | . . . . . 2 . . . . . . . . . . . . . . . 5 . . . . Insert Component 2 | . . . . . . . . . . . . . . . . . . . . . 2 . . . . Retrieve Study 5 | . . . . . 2 . . . . . . . . . . . . . . . 3 . . . . Garrison Access Hacks 12 | . . . . . 1 . 1 . 1 . . . . . 1 1 . . . . 1 . . 6 . Unlock Access 5 | . . . . . 1 . 1 . 1 . . . . . 1 1 . . . . . . . . . Seal Access 4 | . . . . . . . . . . . . . . . . . . . . . 1 . . 3 . Coupler Status 3 | . . . . . . . . . . . . . . . . . . . . . . . . 3 . Unauthorized Hacks 26 | . 8 . . . 2 . . . 2 . . 8 . . 2 . 1 . 1 . 1 . . 1 . Terminals 24 | . 7 . . . 2 . . . 1 . . 8 . . 2 . 1 . 1 . 1 . . 1 . Assimilate 1 | . . . . . . . . . . . . 1 . . . . . . . . . . . . . Botnet 9 | . 1 . . . 2 . . . 1 . . 1 . . . . 1 . 1 . 1 . . 1 . Operators 2 | . 1 . . . . . . . . . . 1 . . . . . . . . . . . . . Skim 10 | . 5 . . . . . . . . . . 5 . . . . . . . . . . . . . Sabotage 2 | . . . . . . . . . . . . . . . 2 . . . . . . . . . . Fabricators . | . . . . . . . . . . . . . . . . . . . . . . . . . . Repair Stations . | . . . . . . . . . . . . . . . . . . . . . . . . . . Recycling Units 2 | . 1 . . . . . . . 1 . . . . . . . . . . . . . . . . Recyclers 1 | . . . . . . . . . 1 . . . . . . . . . . . . . . . . Tunnel 1 | . 1 . . . . . . . . . . . . . . . . . . . . . . . . Scanalyzers . | . . . . . . . . . . . . . . . . . . . . . . . . . . Garrison Access . | . . . . . . . . . . . . . . . . . . . . . . . . . . Data Cores Recovered 2 | . . . . . . . . . 1 . . 1 . . . . . . . . . . . . . Used 1 | . . . . . . . . . . . . 1 . . . . . . . . . . . . . Hacking Detections 68 | . 5 . . . 4 3 2 2 3 1 5 12 . . 1 3 2 4 8 . 4 . . 6 3 Full Trace Events 6 | . . . . . . 1 1 . 1 . . . . . . . 1 . 1 . . . . 1 . Feedback Events 3 | . . . . . . . . . 1 . . . . . . . . . 1 . . . . 1 . Corruption 3 | . . . . . . . . . 1 . . . . . . . . . 1 . . . . 1 . Feedback Blocked . | . . . . . . . . . . . . . . . . . . . . . . . . . . Robot Schematics Acquired . | . . . . . . . . . . . . . . . . . . . . . . . . . . Robots Built 4 | . . . . . . . . . . . . . . . . . . 1 3 . . . . . . Authchips . | . . . . . . . . . . . . . . . . . . . . . . . . . . Time 146 | . . . . . . . . . . . . . . . . . . 62 84 . . . . . . Total Robot Build Rating 25 | . . . . . . . . . . . . . . . . . . 7 18 . . . . . . Part Schematics Acquired 2 | . . . . . . . . . . . . 1 . . . . . . . . 1 . . . . Parts Built . | . . . . . . . . . . . . . . . . . . . . . . . . . . Authchips . | . . . . . . . . . . . . . . . . . . . . . . . . . . Time . | . . . . . . . . . . . . . . . . . . . . . . . . . . Total Part Build Rating . | . . . . . . . . . . . . . . . . . . . . . . . . . . Part Studies Acquired 5 | . . . . . 2 . . . . . . . . . . . . . . . 3 . . . . Parts Repaired 1 | . . . . . . . . . . . . . . . . . . . . . . . . . 1 Time 36 | . . . . . . . . . . . . . . . . . . . . . . . . . 36 Parts Recycled . | . . . . . . . . . . . . . . . . . . . . . . . . . . Recycled Matter . | . . . . . . . . . . . . . . . . . . . . . . . . . . Retrieved Matter . | . . . . . . . . . . . . . . . . . . . . . . . . . . Retrieved Components 1 | . . . . . . . . . 1 . . . . . . . . . . . . . . . . Parts Scanalyzed . | . . . . . . . . . . . . . . . . . . . . . . . . . . Part Schematics Acquired . | . . . . . . . . . . . . . . . . . . . . . . . . . . Parts Damaged . | . . . . . . . . . . . . . . . . . . . . . . . . . . Bothacking | -11 -10 -10 -10 -9 -8 -8 -8 -8 -7 -7 -6 -6 -6 -6 -6 -5 -5 -4 -4 -4 -3 -2 -2 -1 -1 ------------ Run | Yrd Mat Min Exi Min Mat Gar Mat Gar Fac Gar Fac Ext Cet Arc Hub Fac Gar Fac Arm Lab Res Res DSF Acc Com Used RIF Installer 5 | . . . . . . 1 . 2 . 1 . . . . . . 1 . . . . . . . . Threat Obfuscator 1 | . . . . . . . . 1 . . . . . . . . . . . . . . . . . Signal Jammer 1 | . . . . . . . . . . . . . . . . . 1 . . . . . . . . Autooverride 1 | . . . . . . . . 1 . . . . . . . . . . . . . . . . . Autoassimilate 1 | . . . . . . . . . . 1 . . . . . . . . . . . . . . . Robots Hacked 56 | . . . . . . . . 5 2 8 2 10 1 1 3 3 3 4 7 . 1 . . 5 1 Non-combat 4 | . . . . . . . . . . . . . . . . . 1 1 2 . . . . . . Combat 52 | . . . . . . . . 5 2 8 2 10 1 1 3 3 2 3 5 . 1 . . 5 1 Autooverrided 10 | . . . . . . . . . . 2 . 3 . . . 1 . 2 2 . . . . . . Autoassimilated 26 | . . . . . . . . . . 4 1 5 . 1 3 . 2 1 3 . 1 . . 5 . Robot Hacks Applied 21 | . . . . . . . . 5 2 2 1 2 1 . . 2 1 2 2 . . . . . 1 parse_system 1 | . . . . . . . . . . . . . 1 . . . . . . . . . . . . find_fabricator 1 | . . . . . . . . . . . . . . . . . . 1 . . . . . . . drop_inventory 1 | . . . . . . . . . . . . . . . . . . 1 . . . . . . . amplify_resonance 8 | . . . . . . . . 2 2 2 1 . . . . 1 . . . . . . . . . overwrite_iff 3 | . . . . . . . . . . . . 2 . . . 1 . . . . . . . . . streamctrl_high 2 | . . . . . . . . . . . . . . . . . . . 2 . . . . . . formatsys_low 1 | . . . . . . . . . . . . . . . . . 1 . . . . . . . . formatsys_high 4 | . . . . . . . . 3 . . . . . . . . . . . . . . . . 1 Relay Couplers Released 40 | . . . . . . 5 . 12 . 10 . . . . . . 8 . . . 3 . . 2 . Machine Destruction 40 | . . . . . . 5 . 12 . 10 . . . . . . 8 . . . 3 . . 2 . Attached 19 | . . . . . . . . 4 . 3 . 1 . . . 1 4 1 2 . . . . 1 2 Fabnet Peak Effective % . | . . . . . . . . . . . . . . . . . . . . . . . . . . Robots Rewired 25 | . . . . . . 3 . . . 2 . 11 . . . . 1 . 8 . . . . . . Allies Hacked 4 | . . . . . . . . 1 . . . . . . . . . . 2 . . . . 1 . Hacks Repelled . | . . . . . . . . . . . . . . . . . . . . . . . . . . Allies | -11 -10 -10 -10 -9 -8 -8 -8 -8 -7 -7 -6 -6 -6 -6 -6 -5 -5 -4 -4 -4 -3 -2 -2 -1 -1 -------- Run | Yrd Mat Min Exi Min Mat Gar Mat Gar Fac Gar Fac Ext Cet Arc Hub Fac Gar Fac Arm Lab Res Res DSF Acc Com Total Allies 85 | . . . . . . 3 . 4 . 8 1 25 5 1 3 2 4 4 18 . 1 . . 5 1 Largest Group 13 | . . . . . . 3 3 4 4 6 5 9 13 12 13 1 3 3 7 4 4 2 2 3 1 Highest-Rated Group 846 | . . . . . . 87 87 88 88 155 139 396 846 707 733 49 113 125 282 216 216 120 117 196 212 Highest-Rated Ally 212 | . . . . . . 31 31 39 39 39 39 159 159 96 96 49 49 47 64 64 64 64 61 69 212 Total Orders 23 | . . . . . . . . . . . . . 4 1 . . 8 6 1 2 . . . . 1 STAY 13 | . . . . . . . . . . . . . 3 1 . . 4 2 1 1 . . . . 1 FOLLOW 3 | . . . . . . . . . . . . . 1 . . . . 1 . 1 . . . . . AID 7 | . . . . . . . . . . . . . . . . . 4 3 . . . . . . . Ally Attacks 462 | . . . . . . . . 19 15 44 26 80 46 15 90 4 18 10 42 . 17 2 9 21 4 Total Damage 12760 | . . . . . . . . 271 274 854 502 1850 926 429 2846 80 348 281 1360 . 581 105 348 919 786 Kills 74 | . . . . . . . . 4 4 9 6 13 9 2 14 . 1 . 6 . 1 1 . 3 1 Allies Corrupted 15 | . . . . . . . . . . . 1 3 . . 9 . . . 1 . . . . . 1 Allies Melted 3 | . . . . . . . . . . . . 2 . . . . . . 1 . . . . . . Intel | -11 -10 -10 -10 -9 -8 -8 -8 -8 -7 -7 -6 -6 -6 -6 -6 -5 -5 -4 -4 -4 -3 -2 -2 -1 -1 ------- Run | Yrd Mat Min Exi Min Mat Gar Mat Gar Fac Gar Fac Ext Cet Arc Hub Fac Gar Fac Arm Lab Res Res DSF Acc Com Active Infowar (turns) 5857 | 148 970 702 935 931 587 . . . . . . . . . . . . . . . 757 140 9 678 . Sensors 1 | . . . . 1 . . . . . . . . . . . . . . . . . . . . . Seismic 4272 | 148 970 702 935 930 587 . . . . . . . . . . . . . . . . . . . . Jamming 1584 | . . . . . . . . . . . . . . . . . . . . . 757 140 9 678 . Robot Analysis Total 2 | . . . . . . . . . . . . 1 . . . . . . . . . . . . 1 Derelict Logs Recovered 4 | . . 2 . 2 . . . . . . . . . . . . . . . . . . . . . Drone Launches . | . . . . . . . . . . . . . . . . . . . . . . . . . . Drone Recoveries . | . . . . . . . . . . . . . . . . . . . . . . . . . . Exploration | -11 -10 -10 -10 -9 -8 -8 -8 -8 -7 -7 -6 -6 -6 -6 -6 -5 -5 -4 -4 -4 -3 -2 -2 -1 -1 ------------- Run | Yrd Mat Min Exi Min Mat Gar Mat Gar Fac Gar Fac Ext Cet Arc Hub Fac Gar Fac Arm Lab Res Res DSF Acc Com Turns Passed 22125 | 253 970 702 935 937 711 1170 80 1591 559 1255 1034 1240 437 684 580 863 1647 845 1815 417 765 140 106 1193 1196 Spaces Moved 13429 | 136 466 573 643 455 492 736 68 990 320 859 701 713 202 352 385 412 878 461 985 273 587 112 47 839 744 Core 3 | 3 . . . . . . . . . . . . . . . . . . . . . . . . . Treads . | . . . . . . . . . . . . . . . . . . . . . . . . . . Legs 13426 | 133 466 573 643 455 492 736 68 990 320 859 701 713 202 352 385 412 878 461 985 273 587 112 47 839 744 Wheels . | . . . . . . . . . . . . . . . . . . . . . . . . . . Hover . | . . . . . . . . . . . . . . . . . . . . . . . . . . Flight . | . . . . . . . . . . . . . . . . . . . . . . . . . . Fastest Speed 50 | 50 120 120 120 190 108 108 108 101 101 105 112 112 120 120 90 190 112 120 73 102 99 103 103 103 74 Average Speed 124 | 118 120 120 143 190 129 116 108 124 153 108 116 118 121 130 120 190 132 124 120 107 102 103 103 109 109 Slowest Speed 200 | 120 120 120 190 190 190 180 108 176 176 112 187 190 190 190 190 190 190 190 200 108 108 103 103 120 170 Overloaded Moves 149 | . . . . . . . . . . . . . . . 12 . . . 32 . . . . . 105 Propulsion Burnouts . | . . . . . . . . . . . . . . . . . . . . . . . . . . Robots Hopped . | . . . . . . . . . . . . . . . . . . . . . . . . . . Potential Cave-ins 4 | . . . . . . . . . . . . . . . . . . . 4 . . . . . . Cave-ins Triggered . | . . . . . . . . . . . . . . . . . . . . . . . . . . Exploration Rate (%) 50 | 7 70 97 90 71 39 71 6 91 6 74 25 86 64 98 41 12 77 13 55 95 16 5 42 22 29 Regions Visited 25 Branch Regions 10 Pre-discovered Areas 5 | . 2 1 1 1 . . . . . . . . . . . . . . . . . . . . . Known Exits Taken 11 | . . . . . 1 . 1 . 1 . 1 . 1 . 1 1 . 1 . . 1 1 . 1 . Unknown Exits Taken 9 | 1 1 1 1 1 . . . . . . . 1 . 1 . . . . 1 1 . . . . . Scrap Searched 3 | . . 2 . 1 . . . . . . . . . . . . . . . . . . . . . Spaces Dug 47 | . . . . . . 1 . . . 1 3 . . . 1 1 . 10 15 . 3 . . 7 5 Terrain Destroyed 333 | . . . . 13 . 1 . 21 1 2 6 6 36 27 25 11 25 28 57 . 17 1 3 23 30 Melee 1 | . . . . . . 1 . . . . . . . . . . . . . . . . . . . Projectile 281 | . . . . 5 . . . 10 1 2 6 6 36 27 11 11 7 28 57 . 17 1 3 23 30 AOE 51 | . . . . 8 . . . 11 . . . . . . 14 . 18 . . . . . . . . Terrain Rammed . | . . . . . . . . . . . . . . . . . . . . . . . . . . Walls Destroyed . | . . . . . . . . . . . . . . . . . . . . . . . . . . Machines Disabled . | . . . . . . . . . . . . . . . . . . . . . . . . . . Actions | -11 -10 -10 -10 -9 -8 -8 -8 -8 -7 -7 -6 -6 -6 -6 -6 -5 -5 -4 -4 -4 -3 -2 -2 -1 -1 --------- Run | Yrd Mat Min Exi Min Mat Gar Mat Gar Fac Gar Fac Ext Cet Arc Hub Fac Gar Fac Arm Lab Res Res DSF Acc Com Total 17106 | 184 834 586 661 488 549 916 75 1191 370 1082 825 1034 334 495 460 459 1220 626 1369 387 697 128 81 1020 1035 Wait 1379 | 6 324 4 2 3 2 36 4 15 8 37 37 117 80 84 34 4 171 52 83 64 17 7 9 86 93 Move 13408 | 135 465 572 642 454 491 735 68 988 320 858 700 712 201 351 385 412 877 460 984 272 587 111 46 838 744 Hop . | . . . . . . . . . . . . . . . . . . . . . . . . . . Pick Up 170 | 10 7 1 9 2 8 5 1 13 3 8 4 14 5 2 1 4 15 6 18 6 4 3 3 10 8 Fast Attach 165 | 7 . 1 . 1 9 7 . 12 4 6 2 11 3 5 5 1 10 8 31 7 18 . . 4 13 Attach 66 | . . . 2 1 1 4 . 2 1 2 2 2 . 2 2 2 10 4 6 5 2 2 . 3 11 Detach 17 | . . . . . 1 1 . . 1 . . . 1 1 . . 2 . 1 5 . . . 1 3 Swap 291 | . 4 2 1 3 8 11 . 39 9 26 18 21 9 3 10 10 18 22 31 5 12 . 4 11 14 Drop 299 | 3 8 4 5 2 17 6 2 26 10 20 10 20 8 5 4 3 16 18 33 12 24 1 5 16 21 Fire 977 | 23 24 1 . 17 9 56 . 75 14 63 44 45 27 42 18 18 68 56 148 11 30 4 14 49 121 Melee 22 | . . . . . . 7 . 5 . 10 . . . . . . . . . . . . . . . Ram . | . . . . . . . . . . . . . . . . . . . . . . . . . . Kick 30 | . 2 1 . 5 3 . . . . . 8 . . . . . . . . . 3 . . 1 7 Crush . | . . . . . . . . . . . . . . . . . . . . . . . . . . Escape Stasis 104 | . . . . . . 15 . 15 . 38 . 11 . . . 5 20 . . . . . . . . Rewire 176 | . . . . . . 33 . 1 . 14 . 81 . . 1 . 12 . 33 . . . . 1 . Trap 2 | . . . . . . . . . . . . . . . . . 1 . 1 . . . . . . Miscellaneous . | . . . . . . . . . . . . . . . . . . . . . . . . . . Route ------- -11/Scrapyard -10/Materials (discovered 5 exits: *Mat x3 / [*Min] / *Sub) -10/Mines (discovered 3 exits: *Mat / *Exi / Sub) -10/Exiles -9/Mines -8/Materials (discovered 4 exits: *Fac / Sto x2 / Gar) -8/Garrison (discovered 3 exits: *Mat x3) -8/Materials -8/Garrison (discovered 3 exits: *Fac x3) -7/Factory -7/Garrison (discovered 3 exits: *Fac x3) -6/Factory (discovered 6 exits: *Fac x2 / Low x2 / *Ext x2) -6/Extension (discovered 3 exits: *Fac x2 / *Cet) -6/Cetus (discovered 2 exits: *Fac / *Arc) -6/Archives (discovered 3 exits: *Fac / *Hub x2) -6/Hub_04(d) (discovered 3 exits: *Fac x2 / Gar) -5/Factory (discovered 2 exits: [*Upp] / Gar) -5/Garrison (discovered 3 exits: *Fac x3) -4/Factory (discovered 4 exits: *Res / Upp x2 / *Arm) -4/Armory -4/Lab -3/Research (discovered 3 exits: *Res x3) -2/Research -2/DSF -1/Access (discovered 2 exits: Sur / *Com) -1/Command 0b10 Command History --------- Turn | Location | Event 13 | -11/Scrapyard | Discovered new exit (range 14) 254 | -11/Scrapyard | Entered Materials 318 | -10/Materials | Build established: Mutant 442 | -10/Materials | Discovered new exit (range 5) 464 | -10/Materials | Discovered new exit (range 15) 648 | -10/Materials | Discovered new exit (range 15) 743 | -10/Materials | Discovered new exit (range 14) 886 | -10/Materials | Learned location of Subcaves (-10) 949 | -10/Materials | Learned Storage trap positions 1001 | -10/Materials | Identified exit to Materials 1045 | -10/Materials | Learned Storage emergency access door positions 1104 | -10/Materials | Loaded intel: 11 trap records 1140 | -10/Materials | Learned location of 2 exits from Subcaves 1185 | -10/Materials | Learned location of 1 exit from Recycling 1224 | -10/Materials | Entered Mines 1225 | -10/Mines | Identified exit to Subcaves 1314 | -10/Mines | A weapon hastily lodged in a ceiling crevice suddenly fell to the ground 1489 | -10/Mines | Learned location of Storage (-8) 1532 | -10/Mines | Joined a pair of Derelicts in attacking an 0b10 outpost 1866 | -10/Mines | Learned Materials trap positions 1918 | -10/Mines | Deemed a non-threat by the Exiles lab entrance 1920 | -10/Mines | Discovered new exit (range 5) 1926 | -10/Mines | Entered Exiles 1955 | -10/Exiles | Met 8R-AWN 1980 | -10/Exiles | Met EX-HEX 2024 | -10/Exiles | Met EX-DEC 2109 | -10/Exiles | Visited The Gauntlet 2247 | -10/Exiles | Learned location of Zion (-7) 2320 | -10/Exiles | Discovered new exit (range 10) 2392 | -10/Exiles | Met EX-BIN 2409 | -10/Exiles | Aligned with FarCom system 2410 | -10/Exiles | Given EX-Vault access code 2440 | -10/Exiles | Opened EX-Vault 2452 | -10/Exiles | Found Potential Leg 2455 | -10/Exiles | Found Potential Leg 2492 | -10/Exiles | Warned to stay clear of 0b10 Research branches 2861 | -10/Exiles | Left Exiles lab with Potential Leg 2861 | -10/Exiles | Entered Mines 3120 | -9/Mines | Discovered new exit (range 10) 3342 | -9/Mines | Found a damaged Exp. Sensor Array with a note attached 3347 | -9/Mines | Found Prototype Device 3347 | -9/Mines | Identified Exp. Sensor Array 3581 | -9/Mines | Learned Materials emergency access door positions 3637 | -9/Mines | Assembled infested the area 3642 | -9/Mines | Assisted by a Guerilla fighting off Assembled 3699 | -9/Mines | Build established: Scavenger-Mutant 3798 | -9/Mines | Entered Materials 3798 | -8/Materials | Evolved 4 slots: Propulsion x2, Utility x1, Weapon x1 3799 | -8/Materials | Loaded intel: 17 trap records 3803 | -8/Materials | Identified exit to Storage 4066 | -8/Materials | Met 7R-MNS 4188 | -8/Materials | Build established: Scavenger-Skirmisher 4205 | -8/Materials | Discovered new exit (range 5) 4508 | -8/Materials | Identified exit to Garrison 4509 | -8/Materials | Entered Garrison 4553 | -8/Garrison | Triggered checkpoint 4802 | -8/Garrison | Triggered checkpoint 4872 | -8/Garrison | Lost 6 parts (2n2u2w) 5138 | -8/Garrison | Discovered new exit (range 11) 5172 | -8/Garrison | Installed Relay Interface Framework 5252 | -8/Garrison | Garrison Relay disabled 5381 | -8/Garrison | Discovered new exit (range 9) 5463 | -8/Garrison | Triggered checkpoint 5484 | -8/Garrison | Discovered new exit (range 12) 5527 | -8/Garrison | Triggered checkpoint 5679 | -8/Garrison | Entered Materials 5679 | -8/Materials | Accompanied by 3 allies 5759 | -8/Materials | Identified exit to Garrison 5759 | -8/Materials | Entered Garrison 5759 | -8/Garrison | Accompanied by 3 allies 5778 | -8/Garrison | Expanded RIF knowledge: Threat Obfuscation 5960 | -8/Garrison | P-60 Hacker assimilated allied YG-051(l) 6025 | -8/Garrison | Destroyed 7 combat bots 6026 | -8/Garrison | Lost 4 parts (2n1u1w) 6053 | -8/Garrison | Triggered checkpoint 6224 | -8/Garrison | Discovered new exit (range 13) 6271 | -8/Garrison | Triggered checkpoint 6301 | -8/Garrison | Garrison Relay disabled 6475 | -8/Garrison | Triggered checkpoint 6566 | -8/Garrison | Discovered new exit (range 12) 6606 | -8/Garrison | Expanded RIF knowledge: Autooverride 6741 | -8/Garrison | Triggered checkpoint 6798 | -8/Garrison | Core integrity fell below 50% 6873 | -8/Garrison | Triggered checkpoint 6941 | -8/Garrison | Garrison Relay disabled 6991 | -8/Garrison | Triggered checkpoint 7029 | -8/Garrison | Discovered new exit (range 9) 7046 | -8/Garrison | Rescued a captive Derelict 7053 | -8/Garrison | Triggered checkpoint 7101 | -8/Garrison | Garrison Relay disabled 7350 | -8/Garrison | Entered Factory 7350 | -7/Factory | Accompanied by 4 allies 7350 | -7/Factory | Evolved 2 slots: Utility x2 7750 | -7/Factory | First assault squad dispatched 7804 | -7/Factory | Build established: Scavenger-Gunner 7909 | -7/Factory | Identified exit to Garrison 7909 | -7/Factory | Entered Garrison 7909 | -7/Garrison | Accompanied by 2 allies 7941 | -7/Garrison | Triggered checkpoint 7950 | -7/Garrison | Garrison Relay disabled 8123 | -7/Garrison | Triggered checkpoint 8146 | -7/Garrison | Triggered checkpoint 8147 | -7/Garrison | Triggered checkpoint 8219 | -7/Garrison | Triggered checkpoint 8238 | -7/Garrison | Discovered new exit (range 10) 8336 | -7/Garrison | Expanded RIF knowledge: Autoassimilate 8368 | -7/Garrison | Garrison Relay disabled 8556 | -7/Garrison | Discovered new exit (range 3) 8979 | -7/Garrison | Discovered new exit (range 10) 9025 | -7/Garrison | Triggered checkpoint 9103 | -7/Garrison | Build established: Bothacker-Skirmisher 9164 | -7/Garrison | Entered Factory 9164 | -6/Factory | Accompanied by 5 allies 9164 | -6/Factory | Evolved 2 slots: Utility x2 9269 | -6/Factory | Identified exit to Lower Caves 9269 | -6/Factory | Identified exit to Extension 9469 | -6/Factory | Build established: Bothacker-Gunner 9509 | -6/Factory | Discovered new exit (range 15) 10018 | -6/Factory | Build established: Bothacker-Skirmisher 10087 | -6/Factory | Discovered new exit (range 13) 10198 | -6/Factory | Entered Extension 10198 | -6/Extension | Accompanied by 1 ally 10343 | -6/Extension | Rescued a captive Derelict 10394 | -6/Extension | Rescued a captive Derelict 10446 | -6/Extension | Rescued a captive Derelict 10469 | -6/Extension | Lost 3 allies 10505 | -6/Extension | Lost 3 parts (1p2w) 10863 | -6/Extension | Spotted B-75 Beast 10882 | -6/Extension | Allies destroyed B-75 Beast 10883 | -6/Extension | Spotted B-75 Beast 10895 | -6/Extension | Destroyed B-75 Beast 10939 | -6/Extension | Lost 9 allies 11012 | -6/Extension | Rescued A7 11078 | -6/Extension | Rescued a captive Derelict 11233 | -6/Extension | Learned location of 1 exit from Cetus 11269 | -6/Extension | Learned location of 2 exits from Lower Caves 11321 | -6/Extension | Loaded intel: 22 trap records 11322 | -6/Extension | Identified exit to Factory 11371 | -6/Extension | Learned 2 Proximity Caves zone layouts 11403 | -6/Extension | Discovered exit to Factory (range 10) 11404 | -6/Extension | Discovered new exit (range 6) 11438 | -6/Extension | Entered Cetus 11438 | -6/Cetus | Accompanied by 9 allies (A7) 11439 | -6/Cetus | Identified exit to Archives 11443 | -6/Cetus | Acquired a Cetus Manufacturing Module code from A7 11460 | -6/Cetus | Spotted Cetus Guard 11460 | -6/Cetus | Spotted Cetus Guard 11462 | -6/Cetus | Allies destroyed Cetus Guard 11462 | -6/Cetus | Spotted Cetus Guard 11463 | -6/Cetus | Spotted Cetus Guard 11469 | -6/Cetus | Allies destroyed Cetus Guard 11471 | -6/Cetus | Allies destroyed Cetus Guard 11481 | -6/Cetus | Allies destroyed Cetus Guard 11548 | -6/Cetus | Started Cetus Manufacturing Module 11573 | -6/Cetus | Manufactured an Enhanced Grunt 11598 | -6/Cetus | Manufactured an Enhanced Grunt 11615 | -6/Cetus | Spotted Cetus Guard 11623 | -6/Cetus | Manufactured an Enhanced Grunt 11636 | -6/Cetus | Spotted Cetus Guard 11636 | -6/Cetus | Spotted Cetus Guard 11638 | -6/Cetus | Allies destroyed Cetus Guard 11638 | -6/Cetus | Allies destroyed Cetus Guard 11641 | -6/Cetus | Spotted Cetus Guard 11647 | -6/Cetus | Allies destroyed Cetus Guard 11648 | -6/Cetus | Manufactured an Enhanced Grunt 11673 | -6/Cetus | Manufactured an Enhanced Grunt 11674 | -6/Cetus | Met Revision 17 11737 | -6/Cetus | System corruption reached 10% 11816 | -6/Cetus | Murdered A7 11820 | -6/Cetus | Extracted ID and sensor layout for unrecognized location from A7's data core 11825 | -6/Cetus | Found Corrupted Med. Regenerative Plating 11875 | -6/Cetus | Entered Archives 11875 | -6/Archives | Accompanied by 12 allies 11914 | -6/Archives | Discovered new exit (range 14) 11972 | -6/Archives | Discovered exit to Factory (range 15) 12030 | -6/Archives | Build established: Commander-Skirmisher 12069 | -6/Archives | Discovered new exit (range 15) 12559 | -6/Archives | Entered Hub_04(d) 12559 | -6/Hub_04(d) | Accompanied by 12 allies 12613 | -6/Hub_04(d) | Discovered exit to Factory (range 14) 13006 | -6/Hub_04(d) | Garrison activated, responded to threat 13030 | -6/Hub_04(d) | Identified exit to Garrison 13045 | -6/Hub_04(d) | Discovered exit to Factory (range 8) 13101 | -6/Hub_04(d) | Network Hub disabled 13101 | -6/Hub_04(d) | Network Hub disabled 13106 | -6/Hub_04(d) | Spotted Lightning 13107 | -6/Hub_04(d) | Spotted Lightning 13112 | -6/Hub_04(d) | Spotted Lightning 13114 | -6/Hub_04(d) | Spotted Lightning 13120 | -6/Hub_04(d) | Spotted Lightning 13120 | -6/Hub_04(d) | Spotted Lightning 13139 | -6/Hub_04(d) | Entered Factory 13139 | -5/Factory | Evolved 2 slots: Utility x2 13154 | -5/Factory | Lost 13 allies 13416 | -5/Factory | Build established: Bothacker-Skirmisher 13623 | -5/Factory | Discovered new exit (range 4) 14002 | -5/Factory | Identified exit to Garrison 14002 | -5/Factory | Entered Garrison 14228 | -5/Garrison | Triggered checkpoint 14287 | -5/Garrison | Garrison Relay disabled 14355 | -5/Garrison | System corruption reached 10% 14771 | -5/Garrison | Triggered checkpoint 14804 | -5/Garrison | Spotted B-75 Beast 14816 | -5/Garrison | Destroyed B-75 Beast 14973 | -5/Garrison | Found Relay Coupler [Proto] 14975 | -5/Garrison | Found Relay Coupler [Proto] 14977 | -5/Garrison | Found Relay Coupler [Proto] 15108 | -5/Garrison | Triggered checkpoint 15155 | -5/Garrison | Triggered checkpoint 15228 | -5/Garrison | Learned Factory security intel 15326 | -5/Garrison | Discovered new exit (range 12) 15349 | -5/Garrison | Expanded RIF knowledge: Signal Jamming 15376 | -5/Garrison | Triggered checkpoint 15385 | -5/Garrison | Garrison Relay disabled 15548 | -5/Garrison | Discovered new exit (range 15) 15637 | -5/Garrison | Discovered new exit (range 10) 15646 | -5/Garrison | Build established: Botlord-Gunner 15649 | -5/Garrison | Entered Factory 15649 | -4/Factory | Evolved 2 slots: Power x1, Propulsion x1 15708 | -4/Factory | Discovered new exit (range 14) 15756 | -4/Factory | Identified exit to Upper Caves 15756 | -4/Factory | Identified exit to Armory 15878 | -4/Factory | Fabricated M-36 Artificer? 16199 | -4/Factory | Build established: Botlord-Skirmisher 16395 | -4/Factory | Lost 3 parts (1p2w) 16494 | -4/Factory | Entered Armory 16494 | -4/Armory | Accompanied by 1 ally 17191 | -4/Armory | Found Gamma Bomb Array 17194 | -4/Armory | Found Gamma Bomb Array 17406 | -4/Armory | Spotted B-86 Titan 17488 | -4/Armory | Build established: Bothacker-Skirmisher 17565 | -4/Armory | System corruption reached 10% 17738 | -4/Armory | Fabricated B-60 Warrior? 17952 | -4/Armory | Lost 5 allies 18299 | -4/Armory | Discovered new exit (range 4) 18309 | -4/Armory | Entered Lab 18309 | -4/Lab | Accompanied by 4 allies 18313 | -4/Lab | Discovered new exit (range 9) 18325 | -4/Lab | Hidden lab's door opened automatically 18325 | -4/Lab | Sensor layout match revealed 18326 | -4/Lab | Gained access to the hidden lab's interior 18362 | -4/Lab | Found Prototype Special Weapon 18362 | -4/Lab | Identified Gui. Remote Datajack 18381 | -4/Lab | Unable to decrypt terminal 18484 | -4/Lab | Found Prototype Energy Gun 18484 | -4/Lab | Identified Tachyon Dispersion Ray 18488 | -4/Lab | Found Prototype Energy Cannon 18488 | -4/Lab | Identified Warp Cannon 18498 | -4/Lab | Found Prototype Hackware 18502 | -4/Lab | Found Prototype Device 18502 | -4/Lab | Identified AEGIS Remote Shield 18565 | -4/Lab | Found Alien Artifact 18565 | -4/Lab | Identified Integrated Dissipator 18565 | -4/Lab | Installed Integrated Dissipator, increased core heat dissipation (+20) 18573 | -4/Lab | Found Alien Artifact 18583 | -4/Lab | Found Alien Artifact 18726 | -4/Lab | Entered Research 18726 | -3/Research | Accompanied by 4 allies 18726 | -3/Research | Evolved 2 slots: Utility x2 18773 | -3/Research | Identified Core Expander 18773 | -3/Research | Installed Core Expander, added new Propulsion slot 18789 | -3/Research | Identified Deep Network Scanner 18868 | -3/Research | Build established: Bothacker-Tank 18926 | -3/Research | Revision forces began assault on 0b10 18972 | -3/Research | Met up with Revision 17++ 19030 | -3/Research | Identified exit to Research 19337 | -3/Research | Lost 3 allies 19340 | -3/Research | Found Prototype Processor 19340 | -3/Research | Identified Exp. Melee Analysis Suite 19415 | -3/Research | Found Prototype Device 19415 | -3/Research | Identified Exp. Thermal Defense Suite 19426 | -3/Research | Research terminal network offline 19431 | -3/Research | Found Prototype Device 19431 | -3/Research | Identified Exp. Focal Shield 19491 | -3/Research | Entered another Research area 19491 | -2/Research | Accompanied by 2 allies 19491 | -2/Research | Evolved 2 slots: Power x1, Utility x1 19627 | -2/Research | Identified exit to DSF 19631 | -2/Research | Entered DSF 19631 | -2/DSF | Accompanied by 2 allies 19644 | -2/DSF | Found Quantum Capacitor 19666 | -2/DSF | Additional patrols routed to DSF 19677 | -2/DSF | Discovered new exit (range 15) 19737 | -2/DSF | Entered Access 19737 | -1/Access | Accompanied by 1 ally 19737 | -1/Access | Evolved 2 slots: Power x1, Utility x1 20021 | -1/Access | Identified exit to Surface 20070 | -1/Access | Build established: Botlord-Tank 20085 | -1/Access | Identified exit to Command 20444 | -1/Access | Spotted B-99 Colossus 20785 | -1/Access | Build established: Bothacker-Tank 20930 | -1/Access | Entered Command 21098 | -1/Command | Repaired Centrium Medium Armor Plating 21139 | -1/Command | System corruption reached 10% 21407 | -1/Command | Disengaged cave seal 21842 | -1/Command | Spotted Combat Programmer 21844 | -1/Command | Spotted Combat Programmer 21844 | -1/Command | Combat Programmer assimilated allied 90-NKZ(g) 21849 | -1/Command | Destroyed Combat Programmer 21850 | -1/Command | Destroyed Combat Programmer 21877 | -1/Command | Destroyed M Guard 21881 | -1/Command | Assimilated M Guard with formatsys_high 21900 | -1/Command | Found Prototype Protection 21900 | -1/Command | Identified Hvy. Regenerative Plating 21995 | -1/Command | Met MAIN.C 22079 | -1/Command | All MAIN.C guards destroyed 22126 | -1/Command | Interfaced with 0b10 Conduit 22126 | *** | Assimilated 0b10! Last Messages --------------- 22025_ CG#UIW5T,XR=RZYJKCSLDEPGU>Z 22040_ System corrupted: Matter fused (-7). 22058_ System corrupted: Energy discharge (-241). 22079_ M Guard system terminally corrupted. 22081_ Dropped Hvy. Shield Leg. 22084_ System corrupted: Adv. Heat Sink rejected. 22101_ System corrupted: IFF burst signal emitted. 22105_ P-80 Master destroyed. 22106_ Destroyed Gamma Rifle. 22109_ Destroyed Imp. Antigrav System. 22110_ Adv. Target Analyzer melted. 22110_ Sml. Battery melted. 22110_ P-80 Master destroyed. 22114_ Destroyed Imp. Antigrav System. 22114_ P-80 Master destroyed. 22116_ Dropped Com. Particle Reactor. 22126_ Interfacing with system... 22126_ Overriding active MAIN.C lock. [Achievement: MAIN.CPP] [Achievement: Leg Day] Map ----- +----------------------------------------------------+ | ############################################## | | ############################################## | | ################################################## | | ################################################## | | ################################################## | | ################################################## | | ################################################## | | ############################################### | | ############################################### | | ############################################### | | ############################################### | | ############################################### | | ## ############################################### | | ## ############################################### | | ##+###########""""""" """" ############### | | #####"" "" ############### | | #####""""" "" ############### | | #####""""""""""" + | | "" #####" " """ +* | | """"#####"" """""" ; | | """"#####"" """""" ############### | | "" ##### " """""" ############### | | ##### " "" ############### | | ##### " " ""############### | | #####""""""""" """""""############### | | #####"" @"""""""""############### | | ##### """""""""""############### | | ##### " " " " ############### | | ############## " " " " ############### | | ##### """ " " " """" " ############### | | """ """ " " """" ############### | | ##### """ " " " " ############### | | ############## """""""""" " ############### | | ############## " """ " """"""""############### | | ############## """ " " " ############### | | ################################################## | | ################################################## | | ################################################## | | ################################################## | | ################################################## | | ################################################## | | ################################################## | | ################################################## | | ################################################## | | ################################################## | | ################################################## | | ################################################## | | ################################################## | | ################################################## | | ################################################## | +----------------------------------------------------+ Best States ------------- Heat Dissipation 141 Coolant Potential 100 Energy Generation 85 Energy Capacity 670 Matter Stores 300 Matter Capacity 300 Sight Range 16 Terrain Scan Density 10 Jamming Range 14 Power Amplification 40 Armor Coverage 600 Resistance: KI 30 Utility Shielding 90 Weapon Cycling 15 Evasion (%) 82 Targeting Accuracy 8 Target Analysis 6 Core Analysis 6 Salvage Targeting 3 Offensive Hacking 25 Relay Coupler Types 4 Relay Coupler Value 90 Trap Extractor Capacity 6 Item Schematics ----------------- Arm. Leg | -6/Extension | Hacked Centrium Leg | -3/Research | Hacked Robot Schematics ------------------ None Fabricated ------------ M-36 Artificer | x1 | -4/Factory | Preloaded B-60 Warrior | x3 | -4/Armory | Preloaded Repaired ---------- Centrium Medium Armor Plating | 55% | -1/Command Studied --------- Aluminum Leg | -8/Materials | Hacked Flak Cannon | -8/Materials | Hacked Enh. Quantum Rifle | -3/Research | Hacked Enh. Nova Cannon | -3/Research | Hacked Myomer Leg | -3/Research | Hacked Alien Tech Used ----------------- Integrated Dissipator Core Expander Achievements -------------- Hack The Planet Leg Day MAIN.CPP Thread The Needle Around The Corner Challenges ------------ None Game ------ Seed FrostReactionOptics Manual? 0 Play Time 04:34:24 Cumulative 605.4 hours Start 2025.11.09 @ 21:24:42 End 2025.11.15 @ 20:31:52 Sessions 18 Manual Loads 0 Difficulty Rogue Special Mode None Game No. 339 Rogue 314 Adventurer 7 Explorer 18 Win Type 4 Total 50 Types 31/1/8/2/1/1/1/3/0/2 Lore% 95 Gallery% 89 Achievement% 60 Wizard Run 0 Options --------- Layout 0 ASCII 0 Keyboard 0 Movement Numpad Keybinds 0 Fullscreen 1 Font 12/Smallcaps Map View 83x54 Zoom Use 0% Tactical HUD 1 Map Filters NONE Filters NONE Steam 1 RUN: 39bf8bfe-796e-4986-a2d9-b3375d542863